[Event "Late-Titled-Tuesday-Blitz-February-06-2024"]
[Site "Chess.com"]
[Date "2024.02.06"]
[Round "3"]
[White "ChessFighter1975"]
[Black "goldihouse"]
[Result "1-0"]
[WhiteElo "2445"]
[BlackElo "2607"]
[TimeControl "180+1"]
[EndTime "14:29:51 PST"]
[Termination "ChessFighter1975 won on time"]

1. d4 {[%clk 0:03:00.9]} 1... Nf6 {[%clk 0:02:59.1]} 2. c4 {[%clk 0:03:00.8]}
2... e6 {[%clk 0:02:59]} 3. Bg5 {[%clk 0:03:00.3]} 3... Bb4+ {[%clk 0:02:56.9]}
4. Nd2 {[%clk 0:03:00.6]} 4... c5 {[%clk 0:02:52.2]} 5. dxc5 {[%clk 0:03:00]}
5... h6 {[%clk 0:02:49.2]} 6. Bh4 {[%clk 0:02:59.4]} 6... O-O {[%clk 0:02:37.2]}
7. Nf3 {[%clk 0:02:56.8]} 7... Nc6 {[%clk 0:02:30.3]} 8. a3 {[%clk 0:02:56.7]}
8... Bxc5 {[%clk 0:02:30.1]} 9. b4 {[%clk 0:02:52.7]} 9... Be7 {[%clk
0:02:27.2]} 10. e4 {[%clk 0:02:53.1]} 10... d5 {[%clk 0:02:23.5]} 11. cxd5
{[%clk 0:02:53.2]} 11... exd5 {[%clk 0:02:23.7]} 12. e5 {[%clk 0:02:53.5]} 12...
Ne4 {[%clk 0:02:23.3]} 13. Bg3 {[%clk 0:02:47.7]} 13... Bf5 {[%clk 0:02:17.3]}
14. Be2 {[%clk 0:02:41.6]} 14... Nc3 {[%clk 0:02:10.1]} 15. Qb3 {[%clk
0:02:39.8]} 15... d4 {[%clk 0:01:29.3]} 16. Rc1 {[%clk 0:02:11.2]} 16... Rc8
{[%clk 0:01:00.8]} 17. Nxd4 {[%clk 0:01:38]} 17... Nxd4 {[%clk 0:00:55]} 18.
Qxc3 {[%clk 0:01:32.4]} 18... Rxc3 {[%clk 0:00:54]} 19. Rxc3 {[%clk 0:01:33.3]}
19... Nxe2 {[%clk 0:00:52.4]} 20. Kxe2 {[%clk 0:01:34.2]} 20... Qd4 {[%clk
0:00:51.9]} 21. Rhc1 {[%clk 0:01:32.4]} 21... Rd8 {[%clk 0:00:48.6]} 22. Nf3
{[%clk 0:01:28.5]} 22... Qd5 {[%clk 0:00:40.9]} 23. Kf1 {[%clk 0:01:17.3]} 23...
Qb5+ {[%clk 0:00:27.5]} 24. Kg1 {[%clk 0:01:16.6]} 24... Qe2 {[%clk 0:00:27.7]}
25. h3 {[%clk 0:01:12.2]} 25... Rd1+ {[%clk 0:00:27]} 26. Rxd1 {[%clk
0:01:12.8]} 26... Qxd1+ {[%clk 0:00:27.9]} 27. Kh2 {[%clk 0:01:13.7]} 27... Be6
{[%clk 0:00:24.1]} 28. Rc7 {[%clk 0:01:12.8]} 28... Bd8 {[%clk 0:00:22]} 29.
Rxb7 {[%clk 0:01:12]} 29... Bb6 {[%clk 0:00:22.5]} 30. Rb8+ {[%clk 0:00:45.2]}
30... Kh7 {[%clk 0:00:22.4]} 31. Nh4 {[%clk 0:00:37.6]} 31... Qd3 {[%clk
0:00:21.1]} 32. a4 {[%clk 0:00:35.4]} 32... g5 {[%clk 0:00:18.6]} 33. Nf3 {[%clk
0:00:34.9]} 33... Bd5 {[%clk 0:00:15.7]} 34. a5 {[%clk 0:00:34.8]} 34... Bc7
{[%clk 0:00:06.8]} 35. Rc8 {[%clk 0:00:32.6]} 35... Bxa5 {[%clk 0:00:04.2]} 36.
bxa5 {[%clk 0:00:31.1]} 36... Bxf3 {[%clk 0:00:04.2]} 37. gxf3 {[%clk 0:00:32]}
37... Qxf3 {[%clk 0:00:04.7]} 38. Rc7 {[%clk 0:00:30.7]} 38... Kg6 {[%clk
0:00:04.5]} 39. Rxa7 {[%clk 0:00:30.4]} 39... h5 {[%clk 0:00:04.1]} 40. Ra6+
{[%clk 0:00:29.5]} 40... Kg7 {[%clk 0:00:04.6]} 41. h4 {[%clk 0:00:28.1]} 41...
gxh4 {[%clk 0:00:04.4]} 42. Bxh4 {[%clk 0:00:29]} 42... Qf4+ {[%clk 0:00:03.2]}
43. Bg3 {[%clk 0:00:29.5]} 43... Qg4 {[%clk 0:00:04]} 44. e6 {[%clk 0:00:23.4]}
44... fxe6 {[%clk 0:00:02.1]} 45. Be5+ {[%clk 0:00:22.5]} 45... Kg6 {[%clk
0:00:02.5]} 46. Ra8 {[%clk 0:00:19.5]} 46... Kf5 {[%clk 0:00:03]} 47. Bg3 {[%clk
0:00:17.9]} 47... h4 {[%clk 0:00:03.4]} 48. Rf8+ {[%clk 0:00:18.8]} 48... Ke4
{[%clk 0:00:03.4]} 49. Rf4+ {[%clk 0:00:18.1]} 49... Qxf4 {[%clk 0:00:03.8]} 50.
Bxf4 {[%clk 0:00:19]} 50... Kxf4 {[%clk 0:00:03.7]} 51. a6 {[%clk 0:00:19.6]}
1-0

[Event "Late-Titled-Tuesday-Blitz-February-06-2024"]
[Site "Chess.com"]
[Date "2024.02.06"]
[Round "3"]
[White "BozeKat"]
[Black "NowInChess"]
[Result "1-0"]
[WhiteElo "2008"]
[BlackElo "2326"]
[TimeControl "180+1"]
[EndTime "14:29:54 PST"]
[Termination "BozeKat won by checkmate"]

1. d4 {[%clk 0:03:00.9]} 1... Nf6 {[%clk 0:02:59.2]} 2. Bg5 {[%clk 0:03:00.6]}
2... e6 {[%clk 0:02:56.7]} 3. Nd2 {[%clk 0:02:59.5]} 3... h6 {[%clk 0:02:56.1]}
4. Bh4 {[%clk 0:02:56.7]} 4... c5 {[%clk 0:02:54.8]} 5. e3 {[%clk 0:02:49.3]}
5... cxd4 {[%clk 0:02:54.8]} 6. exd4 {[%clk 0:02:50.2]} 6... b6 {[%clk 0:02:55]}
7. c3 {[%clk 0:02:46.7]} 7... Bb7 {[%clk 0:02:54.9]} 8. Ngf3 {[%clk 0:02:47.4]}
8... Be7 {[%clk 0:02:54.5]} 9. Bd3 {[%clk 0:02:47]} 9... d6 {[%clk 0:02:54.4]}
10. O-O {[%clk 0:02:47]} 10... Nbd7 {[%clk 0:02:54.1]} 11. Re1 {[%clk
0:02:46.6]} 11... Nd5 {[%clk 0:02:49.6]} 12. Bxe7 {[%clk 0:02:44.8]} 12... Qxe7
{[%clk 0:02:50.5]} 13. g3 {[%clk 0:02:33.2]} 13... h5 {[%clk 0:02:36.1]} 14. a3
{[%clk 0:02:18.1]} 14... h4 {[%clk 0:02:31.1]} 15. Nxh4 {[%clk 0:02:13.1]} 15...
Nf4 {[%clk 0:02:26.8]} 16. Be4 {[%clk 0:02:06.5]} 16... Bxe4 {[%clk 0:02:00]}
17. Nxe4 {[%clk 0:01:58.4]} 17... f5 {[%clk 0:01:30]} 18. Nxf5 {[%clk
0:01:50.1]} 18... Nh3+ {[%clk 0:01:15.3]} 19. Kg2 {[%clk 0:01:47.5]} 19... Qf8
{[%clk 0:01:00.9]} 20. Nexd6+ {[%clk 0:01:22.6]} 20... Kd8 {[%clk 0:01:00.8]}
21. Qf3 {[%clk 0:01:22.4]} 21... Rb8 {[%clk 0:00:35.5]} 22. Rxe6 {[%clk
0:01:21]} 22... Ng5 {[%clk 0:00:16.8]} 23. Qd5 {[%clk 0:00:47.2]} 23... Nxe6
{[%clk 0:00:16.2]} 24. Qxe6 {[%clk 0:00:48.1]} 24... Qf6 {[%clk 0:00:14.7]} 25.
Nf7+ {[%clk 0:00:45.7]} 25... Kc7 {[%clk 0:00:12.1]} 26. Qxf6 {[%clk 0:00:45.9]}
26... Nxf6 {[%clk 0:00:12.1]} 27. Nxh8 {[%clk 0:00:46.3]} 27... Rxh8 {[%clk
0:00:12.9]} 28. Nxg7 {[%clk 0:00:45]} 28... Ng4 {[%clk 0:00:12.3]} 29. h4 {[%clk
0:00:43.4]} 29... Nf6 {[%clk 0:00:12.7]} 30. Re1 {[%clk 0:00:40]} 30... Kd7
{[%clk 0:00:13]} 31. Nf5 {[%clk 0:00:37.8]} 31... Rh7 {[%clk 0:00:12.4]} 32. f3
{[%clk 0:00:33.9]} 32... Kc6 {[%clk 0:00:12.7]} 33. g4 {[%clk 0:00:33.2]} 33...
Nd5 {[%clk 0:00:13.1]} 34. Kg3 {[%clk 0:00:29.5]} 34... Kb5 {[%clk 0:00:10.7]}
35. Nd6+ {[%clk 0:00:26.3]} 35... Ka4 {[%clk 0:00:09.5]} 36. g5 {[%clk
0:00:23.5]} 36... Kb3 {[%clk 0:00:04.4]} 37. g6 {[%clk 0:00:23.7]} 37... Rg7
{[%clk 0:00:03.7]} 38. h5 {[%clk 0:00:24.2]} 38... Ne7 {[%clk 0:00:03]} 39. Kh4
{[%clk 0:00:22.7]} 39... Kxb2 {[%clk 0:00:01.4]} 40. Kg5 {[%clk 0:00:22.7]}
40... Kxc3 {[%clk 0:00:02]} 41. Nf5 {[%clk 0:00:20.5]} 41... Rg8 {[%clk
0:00:02.9]} 42. Nxe7 {[%clk 0:00:19.3]} 42... Rd8 {[%clk 0:00:03.5]} 43. g7
{[%clk 0:00:18]} 43... Rb8 {[%clk 0:00:02.1]} 44. g8=Q {[%clk 0:00:17.8]} 44...
Kd2 {[%clk 0:00:02.6]} 45. Qxb8 {[%clk 0:00:16.8]} 45... Kxe1 {[%clk 0:00:03.5]}
46. Qxa7 {[%clk 0:00:16.6]} 46... Kf2 {[%clk 0:00:04.4]} 47. Qxb6 {[%clk
0:00:16.6]} 47... Kg3 {[%clk 0:00:05.3]} 48. h6 {[%clk 0:00:16.1]} 48... Kh3
{[%clk 0:00:06.2]} 49. Qe6+ {[%clk 0:00:15.4]} 49... Kg3 {[%clk 0:00:07.1]} 50.
Qg4+ {[%clk 0:00:15.6]} 50... Kf2 {[%clk 0:00:07.2]} 51. f4 {[%clk 0:00:15.5]}
51... Ke3 {[%clk 0:00:07.2]} 52. f5 {[%clk 0:00:16]} 52... Kd3 {[%clk
0:00:07.2]} 53. f6 {[%clk 0:00:16.6]} 53... Kc4 {[%clk 0:00:07.2]} 54. f7 {[%clk
0:00:17.5]} 54... Kc3 {[%clk 0:00:07.7]} 55. f8=Q {[%clk 0:00:18.4]} 55... Kd3
{[%clk 0:00:07.5]} 56. d5 {[%clk 0:00:18.1]} 56... Kc3 {[%clk 0:00:07]} 57.
Qff3+ {[%clk 0:00:18.7]} 57... Kc2 {[%clk 0:00:07]} 58. Qgg2+ {[%clk 0:00:19.4]}
58... Kb1 {[%clk 0:00:07.6]} 59. Qff1# {[%clk 0:00:20.3]} 1-0

[Event "Late-Titled-Tuesday-Blitz-February-06-2024"]
[Site "Chess.com"]
[Date "2024.02.06"]
[Round "3"]
[White "kekic76"]
[Black "Mikayel99"]
[Result "0-1"]
[WhiteElo "2373"]
[BlackElo "2532"]
[TimeControl "180+1"]
[EndTime "14:29:56 PST"]
[Termination "Mikayel99 won by resignation"]

1. e4 {[%clk 0:03:00.9]} 1... e5 {[%clk 0:02:59.1]} 2. Nf3 {[%clk 0:03:00.9]}
2... Nc6 {[%clk 0:02:59.3]} 3. Bb5 {[%clk 0:03:01.5]} 3... Nf6 {[%clk
0:02:58.3]} 4. d3 {[%clk 0:02:59.9]} 4... d6 {[%clk 0:02:54.9]} 5. h3 {[%clk
0:02:59.4]} 5... Bd7 {[%clk 0:02:54.4]} 6. O-O {[%clk 0:02:59]} 6... Be7 {[%clk
0:02:52.9]} 7. Nc3 {[%clk 0:02:57.8]} 7... O-O {[%clk 0:02:53]} 8. Ne2 {[%clk
0:02:57.9]} 8... h6 {[%clk 0:02:53]} 9. Ng3 {[%clk 0:02:58]} 9... a6 {[%clk
0:02:53]} 10. Ba4 {[%clk 0:02:58]} 10... b5 {[%clk 0:02:53.4]} 11. Bb3 {[%clk
0:02:58.4]} 11... Na5 {[%clk 0:02:54]} 12. Re1 {[%clk 0:02:57.4]} 12... Nxb3
{[%clk 0:02:54.1]} 13. axb3 {[%clk 0:02:57.2]} 13... c5 {[%clk 0:02:54.4]} 14.
c3 {[%clk 0:02:54.3]} 14... Re8 {[%clk 0:02:53.3]} 15. d4 {[%clk 0:02:51.7]}
15... exd4 {[%clk 0:02:52.6]} 16. cxd4 {[%clk 0:02:52.1]} 16... Bf8 {[%clk
0:02:52.8]} 17. e5 {[%clk 0:02:48.4]} 17... dxe5 {[%clk 0:02:53.6]} 18. dxe5
{[%clk 0:02:43.6]} 18... Nh7 {[%clk 0:02:53.5]} 19. Bd2 {[%clk 0:02:35.5]} 19...
Be6 {[%clk 0:02:53]} 20. Qc2 {[%clk 0:02:28.6]} 20... b4 {[%clk 0:02:52.5]} 21.
Be3 {[%clk 0:02:23.9]} 21... Qb6 {[%clk 0:02:47.4]} 22. Red1 {[%clk 0:02:10.7]}
22... Rec8 {[%clk 0:02:44.6]} 23. Nd2 {[%clk 0:02:07]} 23... Be7 {[%clk
0:02:34.9]} 24. Nc4 {[%clk 0:02:06]} 24... Qb5 {[%clk 0:02:35.6]} 25. Ne4 {[%clk
0:01:55.4]} 25... Rd8 {[%clk 0:02:27.5]} 26. Ned6 {[%clk 0:01:51.8]} 26... Qc6
{[%clk 0:02:11.9]} 27. f4 {[%clk 0:01:44.1]} 27... Nf8 {[%clk 0:01:42.7]} 28.
Na5 {[%clk 0:01:24.1]} 28... Qc7 {[%clk 0:01:37.7]} 29. Qxc5 {[%clk 0:01:24.1]}
29... Bxd6 {[%clk 0:01:33.1]} 30. exd6 {[%clk 0:01:23.8]} 30... Qxc5 {[%clk
0:01:30.3]} 31. Bxc5 {[%clk 0:01:24.1]} 31... Nd7 {[%clk 0:01:31]} 32. Bxb4
{[%clk 0:01:23.5]} 32... Rdb8 {[%clk 0:01:30.7]} 33. Ba3 {[%clk 0:01:20.6]}
33... Bxb3 {[%clk 0:01:27.1]} 34. Nxb3 {[%clk 0:01:00.9]} 34... Rxb3 {[%clk
0:01:27.1]} 35. Rac1 {[%clk 0:01:01.4]} 35... Rab8 {[%clk 0:00:58.5]} 36. Rc7
{[%clk 0:00:59.1]} 36... R3b7 {[%clk 0:00:59.1]} 37. Re1 {[%clk 0:00:58.1]}
37... Rxc7 {[%clk 0:00:49.1]} 38. dxc7 {[%clk 0:00:57.6]} 38... Rc8 {[%clk
0:00:50]} 39. Bd6 {[%clk 0:00:54.5]} 39... Nf6 {[%clk 0:00:42.2]} 40. f5 {[%clk
0:00:38.4]} 40... Ne8 {[%clk 0:00:35.7]} 41. Bf4 {[%clk 0:00:34.6]} 41... Kf8
{[%clk 0:00:32.9]} 42. Ra1 {[%clk 0:00:29.1]} 42... Ra8 {[%clk 0:00:24.8]} 43.
b4 {[%clk 0:00:22.6]} 43... Ke7 {[%clk 0:00:18.5]} 44. b5 {[%clk 0:00:22.7]}
44... Kd7 {[%clk 0:00:19.2]} 45. b6 {[%clk 0:00:18.7]} 45... Kc6 {[%clk
0:00:15.5]} 46. Be3 {[%clk 0:00:18.9]} 46... Kb7 {[%clk 0:00:13]} 47. Rd1 {[%clk
0:00:17]} 47... Nf6 {[%clk 0:00:13.2]} 48. Rd8 {[%clk 0:00:15.7]} 48... Rc8
{[%clk 0:00:13]} 49. Rd6 {[%clk 0:00:09.1]} 49... a5 {[%clk 0:00:11]} 50. Kf2
{[%clk 0:00:08.1]} 50... Ne4+ {[%clk 0:00:11.1]} 51. Kf3 {[%clk 0:00:08.6]}
51... Nxd6 {[%clk 0:00:12]} 52. Kf4 {[%clk 0:00:09.2]} 52... Nc4 {[%clk
0:00:12.2]} 53. Bd4 {[%clk 0:00:09]} 53... Nxb6 {[%clk 0:00:12.7]} 0-1

[Event "Late-Titled-Tuesday-Blitz-February-06-2024"]
[Site "Chess.com"]
[Date "2024.02.06"]
[Round "3"]
[White "messiboca"]
[Black "Mistango"]
[Result "1-0"]
[WhiteElo "2767"]
[BlackElo "2494"]
[TimeControl "180+1"]
[EndTime "14:29:57 PST"]
[Termination "messiboca won by checkmate"]

1. d4 {[%clk 0:03:00.9]} 1... Nf6 {[%clk 0:02:59.7]} 2. Bf4 {[%clk 0:02:59.1]}
2... g6 {[%clk 0:03:00.6]} 3. e3 {[%clk 0:02:57.7]} 3... Bg7 {[%clk 0:03:01.2]}
4. h3 {[%clk 0:02:56.9]} 4... O-O {[%clk 0:03:01.7]} 5. Nf3 {[%clk 0:02:57.2]}
5... d5 {[%clk 0:03:01.8]} 6. Nbd2 {[%clk 0:02:52.6]} 6... c5 {[%clk 0:03:02.3]}
7. c3 {[%clk 0:02:52.6]} 7... Nc6 {[%clk 0:03:02.7]} 8. Be2 {[%clk 0:02:50.2]}
8... Nd7 {[%clk 0:03:03.3]} 9. Bg3 {[%clk 0:02:45.8]} 9... e5 {[%clk 0:03:03.4]}
10. dxe5 {[%clk 0:02:45.7]} 10... Ndxe5 {[%clk 0:03:03.7]} 11. O-O {[%clk
0:02:43.3]} 11... Be6 {[%clk 0:03:02.4]} 12. a3 {[%clk 0:02:20]} 12... a5 {[%clk
0:02:56.6]} 13. Bb5 {[%clk 0:02:11.8]} 13... Qb6 {[%clk 0:02:51.3]} 14. a4
{[%clk 0:01:07]} 14... Rfd8 {[%clk 0:02:46.6]} 15. Nxe5 {[%clk 0:01:03.7]} 15...
Nxe5 {[%clk 0:02:46.4]} 16. Qe2 {[%clk 0:01:02.8]} 16... c4 {[%clk 0:02:36.4]}
17. Bxe5 {[%clk 0:01:00.9]} 17... Bxe5 {[%clk 0:02:35.9]} 18. Nf3 {[%clk
0:01:00.7]} 18... Bf6 {[%clk 0:02:32.1]} 19. Rfd1 {[%clk 0:01:01.4]} 19... Bf5
{[%clk 0:02:27.4]} 20. Rd2 {[%clk 0:00:51.1]} 20... Bd3 {[%clk 0:02:27.2]} 21.
Qd1 {[%clk 0:00:51.4]} 21... Qe6 {[%clk 0:02:18.5]} 22. Ne1 {[%clk 0:00:51.1]}
22... Be4 {[%clk 0:02:18]} 23. Qe2 {[%clk 0:00:49.7]} 23... Qe7 {[%clk
0:01:40.2]} 24. Rad1 {[%clk 0:00:49.2]} 24... Bg5 {[%clk 0:01:39.8]} 25. Qg4
{[%clk 0:00:38.4]} 25... h5 {[%clk 0:01:36]} 26. Qe2 {[%clk 0:00:36.2]} 26... h4
{[%clk 0:01:34.5]} 27. Nf3 {[%clk 0:00:33.1]} 27... Bf6 {[%clk 0:01:33.2]} 28.
Ne1 {[%clk 0:00:30.8]} 28... Bg5 {[%clk 0:00:24.5]} 29. Nf3 {[%clk 0:00:31.1]}
29... Bf6 {[%clk 0:00:24.6]} 30. Nd4 {[%clk 0:00:31.6]} 30... Be5 {[%clk
0:00:17.8]} 31. Qg4 {[%clk 0:00:31.7]} 31... Bc7 {[%clk 0:00:14]} 32. Nf3 {[%clk
0:00:32]} 32... Bxf3 {[%clk 0:00:10]} 33. Qxf3 {[%clk 0:00:31.8]} 33... Qe5
{[%clk 0:00:10.5]} 34. Rxd5 {[%clk 0:00:31.5]} 34... Qh2+ {[%clk 0:00:09.4]} 35.
Kf1 {[%clk 0:00:31.6]} 35... Rxd5 {[%clk 0:00:06.9]} 36. Rxd5 {[%clk 0:00:31.6]}
36... Qh1+ {[%clk 0:00:06.9]} 37. Ke2 {[%clk 0:00:32]} 37... Qb1 {[%clk
0:00:07.5]} 38. Rd2 {[%clk 0:00:32.3]} 38... Rd8 {[%clk 0:00:04.3]} 39. Rxd8+
{[%clk 0:00:22]} 39... Bxd8 {[%clk 0:00:05.2]} 40. Qd5 {[%clk 0:00:21.4]} 40...
Qxb2+ {[%clk 0:00:05.6]} 41. Kf3 {[%clk 0:00:22]} 41... Bf6 {[%clk 0:00:05.7]}
42. Bxc4 {[%clk 0:00:22.4]} 42... Bg7 {[%clk 0:00:02.3]} 43. Qxf7+ {[%clk
0:00:22.6]} 43... Kh7 {[%clk 0:00:03]} 44. Bd3 {[%clk 0:00:15.4]} 44... Qxc3
{[%clk 0:00:01.9]} 45. Qxg6+ {[%clk 0:00:14]} 45... Kg8 {[%clk 0:00:02.6]} 46.
Qe8+ {[%clk 0:00:12.5]} 46... Bf8 {[%clk 0:00:02.3]} 47. Qe6+ {[%clk 0:00:12.9]}
47... Kg7 {[%clk 0:00:02.7]} 48. Qg6+ {[%clk 0:00:13]} 48... Kh8 {[%clk
0:00:03.1]} 49. Qh7# {[%clk 0:00:13.7]} 1-0

[Event "Late-Titled-Tuesday-Blitz-February-06-2024"]
[Site "Chess.com"]
[Date "2024.02.06"]
[Round "3"]
[White "Ajedrez_con_German"]
[Black "Rsnr"]
[Result "0-1"]
[WhiteElo "2671"]
[BlackElo "2909"]
[TimeControl "180+1"]
[EndTime "14:30:01 PST"]
[Termination "Rsnr won on time"]

1. Nf3 {[%clk 0:02:47]} 1... d5 {[%clk 0:02:59]} 2. e3 {[%clk 0:02:46.6]} 2...
Nf6 {[%clk 0:02:58.2]} 3. b3 {[%clk 0:02:46.6]} 3... c6 {[%clk 0:02:58.1]} 4.
Bb2 {[%clk 0:02:46.4]} 4... Bf5 {[%clk 0:02:57.8]} 5. Be2 {[%clk 0:02:45.3]}
5... e6 {[%clk 0:02:58]} 6. O-O {[%clk 0:02:44.4]} 6... h6 {[%clk 0:02:58.5]} 7.
c4 {[%clk 0:02:44.3]} 7... Be7 {[%clk 0:02:58.6]} 8. cxd5 {[%clk 0:02:44.4]}
8... exd5 {[%clk 0:02:58.7]} 9. d3 {[%clk 0:02:45.1]} 9... O-O {[%clk
0:02:59.2]} 10. a3 {[%clk 0:02:45.3]} 10... a5 {[%clk 0:02:59.5]} 11. Nbd2
{[%clk 0:02:42.5]} 11... Nbd7 {[%clk 0:02:58.7]} 12. Qc2 {[%clk 0:02:42.6]}
12... Re8 {[%clk 0:02:58.5]} 13. Rfe1 {[%clk 0:02:42.4]} 13... Bh7 {[%clk
0:02:58.5]} 14. Bc3 {[%clk 0:02:41.3]} 14... Nc5 {[%clk 0:02:55.9]} 15. b4
{[%clk 0:02:38.7]} 15... axb4 {[%clk 0:02:56]} 16. axb4 {[%clk 0:02:39.6]} 16...
Ne6 {[%clk 0:02:55.4]} 17. Qb2 {[%clk 0:02:34.8]} 17... Qb6 {[%clk 0:02:52.2]}
18. h3 {[%clk 0:02:26.1]} 18... Nd7 {[%clk 0:02:39.5]} 19. Bf1 {[%clk
0:02:19.6]} 19... Qc7 {[%clk 0:02:03.4]} 20. Rxa8 {[%clk 0:02:09.1]} 20... Rxa8
{[%clk 0:02:04.3]} 21. Ra1 {[%clk 0:02:09.3]} 21... Qd8 {[%clk 0:02:00.9]} 22.
Rxa8 {[%clk 0:02:01.5]} 22... Qxa8 {[%clk 0:02:01.8]} 23. Nd4 {[%clk 0:02:01.1]}
23... Nc7 {[%clk 0:01:55.8]} 24. N2f3 {[%clk 0:01:51]} 24... Bf6 {[%clk
0:01:53.9]} 25. Nb3 {[%clk 0:01:46.9]} 25... Bxc3 {[%clk 0:01:42.9]} 26. Qxc3
{[%clk 0:01:47.8]} 26... Qa3 {[%clk 0:01:43.5]} 27. d4 {[%clk 0:01:30.8]} 27...
Bf5 {[%clk 0:01:20.7]} 28. Nfd2 {[%clk 0:01:28.6]} 28... Ne6 {[%clk 0:00:53.6]}
29. Bd3 {[%clk 0:00:58.4]} 29... Bxd3 {[%clk 0:00:52.8]} 30. Qxd3 {[%clk
0:00:58.6]} 30... Qxb4 {[%clk 0:00:53.2]} 31. Qc2 {[%clk 0:00:52.2]} 31... Qa4
{[%clk 0:00:52.1]} 32. Qb2 {[%clk 0:00:46.9]} 32... b5 {[%clk 0:00:52.1]} 33.
Qc3 {[%clk 0:00:42.4]} 33... b4 {[%clk 0:00:52.6]} 34. Qc1 {[%clk 0:00:38.3]}
34... Qa6 {[%clk 0:00:41.4]} 35. Nf3 {[%clk 0:00:35.7]} 35... Qc4 {[%clk
0:00:39.6]} 36. Qb2 {[%clk 0:00:32.9]} 36... Qc3 {[%clk 0:00:13.1]} 37. Qxc3
{[%clk 0:00:31.3]} 37... bxc3 {[%clk 0:00:14]} 38. Kf1 {[%clk 0:00:32]} 38... c5
{[%clk 0:00:06.3]} 39. dxc5 {[%clk 0:00:28.2]} 39... Ndxc5 {[%clk 0:00:07.2]}
40. Nxc5 {[%clk 0:00:28.6]} 40... Nxc5 {[%clk 0:00:08.1]} 41. Nd4 {[%clk
0:00:21.2]} 41... Kf8 {[%clk 0:00:04.6]} 42. Ke2 {[%clk 0:00:21.2]} 42... Ke7
{[%clk 0:00:05.1]} 43. f3 {[%clk 0:00:12.5]} 43... Kf6 {[%clk 0:00:05.4]} 44.
Nb5 {[%clk 0:00:11.7]} 44... c2 {[%clk 0:00:03.7]} 45. Kd2 {[%clk 0:00:09.1]}
45... Nd3 {[%clk 0:00:04.1]} 46. Nd4 {[%clk 0:00:03.6]} 46... c1=Q+ {[%clk
0:00:03.9]} 0-1

[Event "Late-Titled-Tuesday-Blitz-February-06-2024"]
[Site "Chess.com"]
[Date "2024.02.06"]
[Round "3"]
[White "norwaytoadog"]
[Black "RichardLeyvaP"]
[Result "0-1"]
[WhiteElo "2249"]
[BlackElo "2508"]
[TimeControl "180+1"]
[EndTime "14:30:01 PST"]
[Termination "RichardLeyvaP won by resignation"]

1. e4 {[%clk 0:02:59.5]} 1... e5 {[%clk 0:03:00.1]} 2. Nf3 {[%clk 0:02:59.7]}
2... Nc6 {[%clk 0:03:00.4]} 3. Bb5 {[%clk 0:02:59.8]} 3... a6 {[%clk 0:03:00.9]}
4. Ba4 {[%clk 0:02:59.7]} 4... Nf6 {[%clk 0:03:00.3]} 5. O-O {[%clk 0:02:59.8]}
5... Be7 {[%clk 0:03:00.6]} 6. Re1 {[%clk 0:03:00]} 6... b5 {[%clk 0:03:00.8]}
7. Bb3 {[%clk 0:03:00.5]} 7... d6 {[%clk 0:03:01.3]} 8. c3 {[%clk 0:03:00.4]}
8... O-O {[%clk 0:03:01.7]} 9. h3 {[%clk 0:03:00.4]} 9... Bb7 {[%clk 0:03:01.8]}
10. d4 {[%clk 0:02:59.9]} 10... Re8 {[%clk 0:03:02.3]} 11. Nbd2 {[%clk
0:02:56.7]} 11... Bf8 {[%clk 0:03:02.1]} 12. d5 {[%clk 0:02:56.8]} 12... Ne7
{[%clk 0:03:01]} 13. Nf1 {[%clk 0:02:47.6]} 13... h6 {[%clk 0:03:01]} 14. Ng3
{[%clk 0:02:47.3]} 14... c6 {[%clk 0:03:00.5]} 15. dxc6 {[%clk 0:02:44.8]} 15...
Bxc6 {[%clk 0:03:00.7]} 16. Nh2 {[%clk 0:02:42.7]} 16... d5 {[%clk 0:02:57.5]}
17. Ng4 {[%clk 0:02:38.5]} 17... Nxg4 {[%clk 0:02:56.5]} 18. Qxg4 {[%clk
0:02:36.7]} 18... Qd6 {[%clk 0:02:43.5]} 19. Be3 {[%clk 0:02:11.4]} 19... dxe4
{[%clk 0:02:32.2]} 20. Nxe4 {[%clk 0:01:56]} 20... Qg6 {[%clk 0:02:29.4]} 21.
Qxg6 {[%clk 0:01:48]} 21... Nxg6 {[%clk 0:02:29.7]} 22. Ng3 {[%clk 0:01:35.6]}
22... Nf4 {[%clk 0:02:20.2]} 23. f3 {[%clk 0:01:13.9]} 23... Nd3 {[%clk
0:02:00.5]} 24. Re2 {[%clk 0:01:10.4]} 24... a5 {[%clk 0:01:50.4]} 25. a4 {[%clk
0:00:57.6]} 25... Nc5 {[%clk 0:01:36.9]} 26. Bc2 {[%clk 0:00:42.3]} 26... bxa4
{[%clk 0:01:33.9]} 27. Kh2 {[%clk 0:00:38.3]} 27... Nb3 {[%clk 0:01:30.9]} 28.
Rd1 {[%clk 0:00:37.2]} 28... Rab8 {[%clk 0:01:25.6]} 29. Ne4 {[%clk 0:00:35.8]}
29... Re6 {[%clk 0:01:18]} 30. Bd3 {[%clk 0:00:24.7]} 30... f5 {[%clk
0:01:07.2]} 31. Bc4 {[%clk 0:00:22.8]} 31... Kf7 {[%clk 0:00:55.6]} 32. Bxe6+
{[%clk 0:00:21.1]} 32... Kxe6 {[%clk 0:00:55.4]} 33. Nd2 {[%clk 0:00:21.4]}
33... g5 {[%clk 0:00:43.9]} 34. Nxb3 {[%clk 0:00:20.1]} 34... Rxb3 {[%clk
0:00:42.7]} 35. Red2 {[%clk 0:00:20]} 35... Be7 {[%clk 0:00:35.8]} 36. Bf2
{[%clk 0:00:16.9]} 36... a3 {[%clk 0:00:31.8]} 37. bxa3 {[%clk 0:00:16.6]} 37...
Rxa3 {[%clk 0:00:28.3]} 38. Rc1 {[%clk 0:00:16.5]} 38... Rb3 {[%clk 0:00:27.3]}
39. Ra2 {[%clk 0:00:12.5]} 39... a4 {[%clk 0:00:26.3]} 40. c4 {[%clk 0:00:11.6]}
40... a3 {[%clk 0:00:19.1]} 41. c5 {[%clk 0:00:11.5]} 41... Bd5 {[%clk
0:00:16.4]} 42. c6 {[%clk 0:00:11.1]} 42... Rb8 {[%clk 0:00:14.3]} 43. Rc3
{[%clk 0:00:09.8]} 43... Bxa2 {[%clk 0:00:12.1]} 44. Rxa3 {[%clk 0:00:09.5]}
44... Bxa3 {[%clk 0:00:11.6]} 0-1